[Event "*** MasterClass Titled Tuesday Blitz"]
[Site "Chess.com"]
[Date "2017.11.07"]
[Round "5"]
[White "Tobi-Wan-Kenobi"]
[Black "Blitzstream"]
[Result "1-0"]
[WhiteElo "2481"]
[BlackElo "2479"]
[TimeControl "180+2"]
[EndTime "15:15:28 PST"]
[Termination "Tobi-Wan-Kenobi won by resignation"]

1. d4 {[%clk 0:03:01.9]} 1... d5 {[%clk 0:03:00.4]} 2. c4 {[%clk 0:03:02.8]}
2... c6 {[%clk 0:03:01.5]} 3. Nf3 {[%clk 0:03:03.1]} 3... Nf6 {[%clk 0:03:02.5]}
4. Nc3 {[%clk 0:03:03.4]} 4... e6 {[%clk 0:03:03.4]} 5. e3 {[%clk 0:03:03.8]}
5... Nbd7 {[%clk 0:03:03.5]} 6. Qc2 {[%clk 0:03:04.8]} 6... Bd6 {[%clk
0:03:03.6]} 7. Bd3 {[%clk 0:03:05]} 7... dxc4 {[%clk 0:03:04.2]} 8. Bxc4 {[%clk
0:03:05.6]} 8... O-O {[%clk 0:03:05.8]} 9. O-O {[%clk 0:03:06.6]} 9... b5 {[%clk
0:03:07.1]} 10. Be2 {[%clk 0:03:07.9]} 10... Bb7 {[%clk 0:03:08.3]} 11. e4
{[%clk 0:03:08.2]} 11... e5 {[%clk 0:03:09.1]} 12. dxe5 {[%clk 0:03:10.1]} 12...
Nxe5 {[%clk 0:03:10.9]} 13. Nd4 {[%clk 0:03:11.6]} 13... Neg4 {[%clk 0:02:37.5]}
14. g3 {[%clk 0:03:09.7]} 14... Bxg3 {[%clk 0:02:30.9]} 15. hxg3 {[%clk
0:03:11.6]} 15... Qxd4 {[%clk 0:02:30.3]} 16. Qd1 {[%clk 0:03:13.5]} 16... Qxd1
{[%clk 0:02:15.6]} 17. Rxd1 {[%clk 0:03:15.4]} 17... Rfe8 {[%clk 0:02:01.2]} 18.
f3 {[%clk 0:03:08.6]} 18... Ne5 {[%clk 0:02:01.7]} 19. Be3 {[%clk 0:03:09.5]}
19... a6 {[%clk 0:01:39.5]} 20. Kf2 {[%clk 0:03:08.9]} 20... h5 {[%clk
0:01:33.3]} 21. Rac1 {[%clk 0:03:05.3]} 21... Rad8 {[%clk 0:01:30.9]} 22. Bb6
{[%clk 0:03:01.6]} 22... Rxd1 {[%clk 0:01:31]} 23. Rxd1 {[%clk 0:03:03.5]} 23...
Ned7 {[%clk 0:01:30.5]} 24. Be3 {[%clk 0:02:56.7]} 24... c5 {[%clk 0:01:29.1]}
25. a4 {[%clk 0:02:55.7]} 25... b4 {[%clk 0:01:27.3]} 26. Nd5 {[%clk 0:02:56.8]}
26... Nxd5 {[%clk 0:01:05.6]} 27. exd5 {[%clk 0:02:58.7]} 27... Nb6 {[%clk
0:00:57.4]} 28. d6 {[%clk 0:02:49.1]} 28... Nxa4 {[%clk 0:00:56.1]} 29. d7
{[%clk 0:02:11.4]} 29... Rd8 {[%clk 0:00:56.7]} 30. Bf4 {[%clk 0:02:13.3]} 30...
Bc6 {[%clk 0:00:53.4]} 31. Rd6 {[%clk 0:02:06.9]} 31... Bxd7 {[%clk 0:00:41.9]}
32. Rd2 {[%clk 0:01:51.8]} 32... Kf8 {[%clk 0:00:19.8]} 33. Bc7 {[%clk
0:01:50.2]} 33... Ke8 {[%clk 0:00:19.3]} 34. Bxd8 {[%clk 0:01:49.8]} 34... Kxd8
{[%clk 0:00:21.2]} 35. Bxa6 {[%clk 0:01:50.6]} 35... Kc7 {[%clk 0:00:22.8]} 36.
Rxd7+ {[%clk 0:01:50.6]} 36... Kxd7 {[%clk 0:00:22.7]} 37. Bb5+ {[%clk
0:01:52.5]} 37... Kd6 {[%clk 0:00:24.3]} 38. Bxa4 {[%clk 0:01:54.4]} 38... Kd5
{[%clk 0:00:25.4]} 39. b3 {[%clk 0:01:53]} 39... c4 {[%clk 0:00:25.2]} 40. Ke3
{[%clk 0:01:46.6]} 40... g5 {[%clk 0:00:22]} 41. Be8 {[%clk 0:01:44]} 41... cxb3
{[%clk 0:00:09.8]} 42. Bxf7+ {[%clk 0:01:43.5]} 42... Ke5 {[%clk 0:00:11.1]} 43.
Bxb3 {[%clk 0:01:44.3]} 43... h4 {[%clk 0:00:05.6]} 44. Kf2 {[%clk 0:01:16.2]}
44... h3 {[%clk 0:00:03.5]} 45. Kg1 {[%clk 0:01:13]} 45... Kd4 {[%clk
0:00:02.3]} 46. Kh2 {[%clk 0:01:09.9]} 46... Ke3 {[%clk 0:00:03.6]} 47. Bd5
{[%clk 0:01:07.4]} 47... Kd4 {[%clk 0:00:04.2]} 48. Be4 {[%clk 0:01:06.9]} 48...
g4 {[%clk 0:00:04.6]} 49. Bc2 {[%clk 0:00:48.6]} 49... Kc3 {[%clk 0:00:05.3]}
50. Bd1 {[%clk 0:00:47.7]} 50... Kd2 {[%clk 0:00:06.4]} 51. fxg4 {[%clk
0:00:30.9]} 51... Kxd1 {[%clk 0:00:07.7]} 52. g5 {[%clk 0:00:32.2]} 52... b3
{[%clk 0:00:09.6]} 53. g6 {[%clk 0:00:34.1]} 53... b2 {[%clk 0:00:11.5]} 54. g7
{[%clk 0:00:36]} 54... b1=Q {[%clk 0:00:13.4]} 55. g8=Q {[%clk 0:00:36.4]} 55...
Qf5 {[%clk 0:00:13.2]} 56. Qb3+ {[%clk 0:00:32.8]} 56... Ke1 {[%clk 0:00:14]}
57. Qe3+ {[%clk 0:00:32.7]} 57... Kf1 {[%clk 0:00:15.1]} 58. Qf4+ {[%clk
0:00:33]} 1-0

[Event "*** MasterClass Titled Tuesday Blitz"]
[Site "Chess.com"]
[Date "2017.11.07"]
[Round "5"]
[White "StoreySniper"]
[Black "thegreendog"]
[Result "1/2-1/2"]
[WhiteElo "2287"]
[BlackElo "2342"]
[TimeControl "180+2"]
[EndTime "15:15:28 PST"]
[Termination "Game drawn - insufficient material"]

1. e4 {[%clk 0:03:01.9]} 1... c5 {[%clk 0:03:00.8]} 2. Nc3 {[%clk 0:02:59.8]}
2... Nc6 {[%clk 0:03:01.5]} 3. g3 {[%clk 0:03:00.7]} 3... g6 {[%clk 0:03:02.6]}
4. Bg2 {[%clk 0:03:02.3]} 4... Bg7 {[%clk 0:03:04.3]} 5. d3 {[%clk 0:03:03.7]}
5... e6 {[%clk 0:03:04.1]} 6. Be3 {[%clk 0:03:04.2]} 6... Nd4 {[%clk 0:03:04.9]}
7. Nge2 {[%clk 0:03:00.1]} 7... Ne7 {[%clk 0:03:05.6]} 8. Qd2 {[%clk 0:02:57.6]}
8... h5 {[%clk 0:03:05.6]} 9. h3 {[%clk 0:02:57.8]} 9... d6 {[%clk 0:03:03]} 10.
Nd1 {[%clk 0:02:57.8]} 10... e5 {[%clk 0:03:03.5]} 11. c3 {[%clk 0:02:58.3]}
11... Nxe2 {[%clk 0:03:04.3]} 12. Qxe2 {[%clk 0:02:59.5]} 12... Be6 {[%clk
0:03:04.9]} 13. f4 {[%clk 0:02:57.6]} 13... Qd7 {[%clk 0:03:05.3]} 14. Nf2
{[%clk 0:02:53.5]} 14... f5 {[%clk 0:03:05.6]} 15. d4 {[%clk 0:02:36.2]} 15...
cxd4 {[%clk 0:03:03.8]} 16. cxd4 {[%clk 0:02:36.6]} 16... exd4 {[%clk
0:03:03.7]} 17. Bd2 {[%clk 0:02:31.8]} 17... O-O {[%clk 0:03:00]} 18. g4 {[%clk
0:02:26.6]} 18... fxg4 {[%clk 0:02:57.9]} 19. hxg4 {[%clk 0:02:27.6]} 19... Bxg4
{[%clk 0:02:58]} 20. Nxg4 {[%clk 0:02:28.2]} 20... Qxg4 {[%clk 0:02:58.3]} 21.
Qxg4 {[%clk 0:02:24.7]} 21... hxg4 {[%clk 0:02:59.1]} 22. Rh4 {[%clk 0:02:15.7]}
22... d5 {[%clk 0:02:46.9]} 23. Rxg4 {[%clk 0:02:16.3]} 23... dxe4 {[%clk
0:02:47.8]} 24. Bxe4 {[%clk 0:02:17.2]} 24... Rae8 {[%clk 0:02:48.9]} 25. O-O-O
{[%clk 0:02:10.7]} 25... Nf5 {[%clk 0:02:47.8]} 26. Bd5+ {[%clk 0:02:11.6]}
26... Kh7 {[%clk 0:02:47.5]} 27. Bxb7 {[%clk 0:01:43.1]} 27... Bh6 {[%clk
0:02:28.3]} 28. Rh1 {[%clk 0:01:36.7]} 28... Kg7 {[%clk 0:02:25.3]} 29. Ba6
{[%clk 0:01:22.2]} 29... Ne3 {[%clk 0:02:22.4]} 30. Bxe3 {[%clk 0:01:16.7]}
30... Rxe3 {[%clk 0:02:04.8]} 31. Rhh4 {[%clk 0:00:55.9]} 31... Rf6 {[%clk
0:01:58.4]} 32. Bc4 {[%clk 0:00:49.6]} 32... Re4 {[%clk 0:01:55.4]} 33. Bd3
{[%clk 0:00:50.2]} 33... Rexf4 {[%clk 0:01:53.5]} 34. Rxf4 {[%clk 0:00:45.6]}
34... Bxf4+ {[%clk 0:01:51.9]} 35. Kc2 {[%clk 0:00:46.6]} 35... Rc6+ {[%clk
0:01:52]} 36. Kb3 {[%clk 0:00:46.9]} 36... Be3 {[%clk 0:01:50.7]} 37. a4 {[%clk
0:00:41.5]} 37... Kf6 {[%clk 0:01:43.6]} 38. Kb4 {[%clk 0:00:38.3]} 38... Rb6+
{[%clk 0:01:43]} 39. Bb5 {[%clk 0:00:33.5]} 39... Kg5 {[%clk 0:01:12.6]} 40. Re4
{[%clk 0:00:27.5]} 40... Kf5 {[%clk 0:01:12.2]} 41. Re8 {[%clk 0:00:24.9]} 41...
g5 {[%clk 0:01:04]} 42. Kc5 {[%clk 0:00:22.9]} 42... Kf4 {[%clk 0:00:56.7]} 43.
Rf8+ {[%clk 0:00:21.3]} 43... Kg3 {[%clk 0:00:56.9]} 44. Kc4 {[%clk 0:00:17.8]}
44... Rb7 {[%clk 0:00:48.6]} 45. b4 {[%clk 0:00:16]} 45... g4 {[%clk 0:00:49.3]}
46. Bc6 {[%clk 0:00:15.5]} 46... Rc7 {[%clk 0:00:50.6]} 47. b5 {[%clk
0:00:15.7]} 47... Kh2 {[%clk 0:00:49.9]} 48. a5 {[%clk 0:00:16.7]} 48... g3
{[%clk 0:00:49.7]} 49. Rh8+ {[%clk 0:00:17.5]} 49... Kg1 {[%clk 0:00:50.5]} 50.
Rh1+ {[%clk 0:00:17.9]} 50... Kf2 {[%clk 0:00:51.8]} 51. Rh5 {[%clk 0:00:10.4]}
51... Rg7 {[%clk 0:00:41.2]} 52. b6 {[%clk 0:00:10.2]} 52... axb6 {[%clk
0:00:39.8]} 53. axb6 {[%clk 0:00:11.4]} 53... g2 {[%clk 0:00:33.8]} 54. Rh2
{[%clk 0:00:12]} 54... d3 {[%clk 0:00:22.3]} 55. Kxd3 {[%clk 0:00:10.6]} 55...
Bxb6 {[%clk 0:00:21.1]} 56. Rxg2+ {[%clk 0:00:11.6]} 56... Rxg2 {[%clk
0:00:22.3]} 57. Bxg2 {[%clk 0:00:12.4]} 57... Kxg2 {[%clk 0:00:24.2]} 1/2-1/2

[Event "*** MasterClass Titled Tuesday Blitz"]
[Site "Chess.com"]
[Date "2017.11.07"]
[Round "5"]
[White "Divertissement"]
[Black "Bad4life"]
[Result "1-0"]
[WhiteElo "2411"]
[BlackElo "2386"]
[TimeControl "180+2"]
[EndTime "15:15:41 PST"]
[Termination "Divertissement won by resignation"]

1. e4 {[%clk 0:03:01.2]} 1... d6 {[%clk 0:03:00.5]} 2. d4 {[%clk 0:03:00.3]}
2... Nf6 {[%clk 0:03:01.9]} 3. Nc3 {[%clk 0:03:01.7]} 3... g6 {[%clk 0:03:03.2]}
4. g3 {[%clk 0:02:53.5]} 4... Bg7 {[%clk 0:03:03.2]} 5. Bg2 {[%clk 0:02:55]}
5... O-O {[%clk 0:03:00.4]} 6. Nge2 {[%clk 0:02:54.3]} 6... c5 {[%clk
0:02:57.2]} 7. dxc5 {[%clk 0:02:42.4]} 7... dxc5 {[%clk 0:02:58.2]} 8. Qxd8
{[%clk 0:02:43.4]} 8... Rxd8 {[%clk 0:03:00.1]} 9. Be3 {[%clk 0:02:44.6]} 9...
Na6 {[%clk 0:02:58.4]} 10. h3 {[%clk 0:02:32.4]} 10... Kf8 {[%clk 0:02:52]} 11.
f4 {[%clk 0:02:31.2]} 11... e5 {[%clk 0:02:48.4]} 12. O-O {[%clk 0:02:06.8]}
12... Nh5 {[%clk 0:02:42]} 13. a3 {[%clk 0:01:46.9]} 13... Rb8 {[%clk
0:02:23.9]} 14. Rad1 {[%clk 0:01:34.5]} 14... Bd7 {[%clk 0:02:10.7]} 15. f5
{[%clk 0:01:27.7]} 15... Bc6 {[%clk 0:02:00.2]} 16. g4 {[%clk 0:01:25.7]} 16...
Nf6 {[%clk 0:00:50.4]} 17. g5 {[%clk 0:01:24.7]} 17... Ne8 {[%clk 0:00:37]} 18.
f6 {[%clk 0:01:24.9]} 18... Bh8 {[%clk 0:00:38.2]} 19. Nd5 {[%clk 0:01:00.5]}
19... Bb5 {[%clk 0:00:29.1]} 20. Rf2 {[%clk 0:00:54.2]} 20... Rbc8 {[%clk
0:00:23.7]} 21. Nec3 {[%clk 0:00:52.1]} 21... Bc6 {[%clk 0:00:20.7]} 22. Rfd2
{[%clk 0:00:53.3]} 22... b6 {[%clk 0:00:21]} 23. Ne7 {[%clk 0:00:52.6]} 23...
Rxd2 {[%clk 0:00:21.2]} 24. Rxd2 {[%clk 0:00:53.3]} 24... Rc7 {[%clk 0:00:21.1]}
25. Nxc6 {[%clk 0:00:35.3]} 25... Rxc6 {[%clk 0:00:22]} 26. Bf1 {[%clk
0:00:30.6]} 26... Nac7 {[%clk 0:00:21.6]} 27. Bc4 {[%clk 0:00:27.1]} 27... Nd6
{[%clk 0:00:18.1]} 28. Ba2 {[%clk 0:00:16.7]} 28... b5 {[%clk 0:00:15.2]} 29.
Bd5 {[%clk 0:00:16.6]} 29... Nxd5 {[%clk 0:00:14.8]} 30. exd5 {[%clk 0:00:18.2]}
30... Rc8 {[%clk 0:00:14.3]} 31. h4 {[%clk 0:00:17.1]} 31... Ke8 {[%clk
0:00:13.8]} 32. Ne2 {[%clk 0:00:12]} 32... a6 {[%clk 0:00:14.8]} 33. Bf2 {[%clk
0:00:13.3]} 33... Ne4 {[%clk 0:00:15.7]} 34. Rd3 {[%clk 0:00:13.5]} 34... h6
{[%clk 0:00:15.1]} 35. Re3 {[%clk 0:00:14]} 35... Nxf2 {[%clk 0:00:10.2]} 36.
Kxf2 {[%clk 0:00:15.9]} 36... hxg5 {[%clk 0:00:10.3]} 37. Rxe5+ {[%clk
0:00:16.5]} 37... Kd7 {[%clk 0:00:11.1]} 38. hxg5 {[%clk 0:00:18.1]} 38... Kd6
{[%clk 0:00:12.5]} 39. Re7 {[%clk 0:00:19.1]} 39... Rf8 {[%clk 0:00:12.4]} 40.
Nf4 {[%clk 0:00:19.4]} 40... a5 {[%clk 0:00:09.8]} 41. Kf3 {[%clk 0:00:19.9]}
41... b4 {[%clk 0:00:10.9]} 42. a4 {[%clk 0:00:20.8]} 42... c4 {[%clk
0:00:11.9]} 43. Ke4 {[%clk 0:00:21.8]} 43... b3 {[%clk 0:00:08.7]} 44. c3 {[%clk
0:00:22.7]} 44... Kc5 {[%clk 0:00:08.9]} 45. Ke5 {[%clk 0:00:23.6]} 45... Kb6
{[%clk 0:00:06.3]} 46. d6 {[%clk 0:00:24.6]} 46... Kc6 {[%clk 0:00:07.3]} 47.
Rc7+ {[%clk 0:00:25.1]} 47... Kb6 {[%clk 0:00:08.5]} 48. Nd5+ {[%clk 0:00:26.1]}
48... Ka6 {[%clk 0:00:10]} 49. Re7 {[%clk 0:00:26.8]} 49... Rd8 {[%clk
0:00:04.3]} 50. d7 {[%clk 0:00:25.7]} 50... Kb7 {[%clk 0:00:04]} 51. Kd6 {[%clk
0:00:25.9]} 51... Ra8 {[%clk 0:00:04.5]} 52. Re8 {[%clk 0:00:25.2]} 52... Bxf6
{[%clk 0:00:03.4]} 53. gxf6 {[%clk 0:00:25.6]} 53... Ra6+ {[%clk 0:00:03.4]} 54.
Ke7 {[%clk 0:00:27]} 54... Rxf6 {[%clk 0:00:04.2]} 55. Nxf6 {[%clk 0:00:27]} 1-0

[Event "*** MasterClass Titled Tuesday Blitz"]
[Site "Chess.com"]
[Date "2017.11.07"]
[Round "5"]
[White "Lunaticx"]
[Black "MartinZumsande"]
[Result "1-0"]
[WhiteElo "2676"]
[BlackElo "2439"]
[TimeControl "180+2"]
[EndTime "15:16:02 PST"]
[Termination "Lunaticx won by resignation"]

1. d4 {[%clk 0:03:01.1]} 1... d5 {[%clk 0:02:59.1]} 2. c4 {[%clk 0:03:02.5]}
2... e6 {[%clk 0:03:00.2]} 3. Nc3 {[%clk 0:03:03.1]} 3... Be7 {[%clk 0:03:01.2]}
4. Nf3 {[%clk 0:03:02.8]} 4... Nf6 {[%clk 0:03:02]} 5. Bf4 {[%clk 0:03:03.7]}
5... O-O {[%clk 0:03:03]} 6. e3 {[%clk 0:03:04.8]} 6... c5 {[%clk 0:03:04.6]} 7.
dxc5 {[%clk 0:03:01.9]} 7... Bxc5 {[%clk 0:03:06.5]} 8. a3 {[%clk 0:03:00.6]}
8... Nc6 {[%clk 0:03:07.9]} 9. Be2 {[%clk 0:03:00.4]} 9... dxc4 {[%clk
0:03:03.5]} 10. Bxc4 {[%clk 0:03:02.2]} 10... a6 {[%clk 0:03:04.4]} 11. O-O
{[%clk 0:03:00.6]} 11... b5 {[%clk 0:02:59.2]} 12. Ba2 {[%clk 0:03:01.1]} 12...
Bb7 {[%clk 0:02:59.8]} 13. Rc1 {[%clk 0:03:00.8]} 13... Be7 {[%clk 0:02:54]} 14.
Ne5 {[%clk 0:02:46.9]} 14... Nxe5 {[%clk 0:02:49.9]} 15. Bxe5 {[%clk 0:02:48.8]}
15... Qxd1 {[%clk 0:02:46]} 16. Rfxd1 {[%clk 0:02:49.1]} 16... Rfd8 {[%clk
0:02:47.5]} 17. f3 {[%clk 0:02:46.9]} 17... Kf8 {[%clk 0:02:45.3]} 18. e4 {[%clk
0:02:45.3]} 18... Rxd1+ {[%clk 0:02:42.9]} 19. Rxd1 {[%clk 0:02:46]} 19... Rd8
{[%clk 0:02:42.8]} 20. Kf2 {[%clk 0:02:44]} 20... Rxd1 {[%clk 0:02:39]} 21. Nxd1
{[%clk 0:02:45.9]} 21... Bc5+ {[%clk 0:02:32.8]} 22. Ke2 {[%clk 0:02:44.6]}
22... Nd7 {[%clk 0:02:32.2]} 23. Bc3 {[%clk 0:02:44.5]} 23... g6 {[%clk
0:02:18.8]} 24. Nf2 {[%clk 0:02:43.2]} 24... Ke7 {[%clk 0:02:10.3]} 25. Nd3
{[%clk 0:02:43.3]} 25... Bd6 {[%clk 0:02:09]} 26. e5 {[%clk 0:02:26]} 26... Bc7
{[%clk 0:02:08.5]} 27. h4 {[%clk 0:02:24.9]} 27... h5 {[%clk 0:02:07.2]} 28. Bd4
{[%clk 0:02:21.4]} 28... Kf8 {[%clk 0:01:57.8]} 29. Ke3 {[%clk 0:02:22]} 29...
Nb6 {[%clk 0:01:53.6]} 30. Nc5 {[%clk 0:02:18.4]} 30... Bd5 {[%clk 0:01:33.2]}
31. Bxd5 {[%clk 0:01:09.1]} 31... Nxd5+ {[%clk 0:01:32.2]} 32. Ke4 {[%clk
0:01:07.4]} 32... a5 {[%clk 0:01:30.7]} 33. a4 {[%clk 0:01:04.4]} 33... bxa4
{[%clk 0:01:22.7]} 34. Nxa4 {[%clk 0:01:06.3]} 34... Ke7 {[%clk 0:01:22.8]} 35.
Nc5 {[%clk 0:01:05.9]} 35... Bb6 {[%clk 0:01:12.2]} 36. Nd3 {[%clk 0:01:05.9]}
36... Kd7 {[%clk 0:01:06.4]} 37. Bxb6 {[%clk 0:00:57.8]} 37... Nxb6 {[%clk
0:01:08.3]} 38. Kd4 {[%clk 0:00:54.4]} 38... Kc6 {[%clk 0:01:07.7]} 39. Nf4
{[%clk 0:00:53.5]} 39... Na4 {[%clk 0:00:52.6]} 40. Nd3 {[%clk 0:00:52.3]} 40...
Kb5 {[%clk 0:00:43.7]} 41. g4 {[%clk 0:00:50.5]} 41... Nb6 {[%clk 0:00:37.2]}
42. gxh5 {[%clk 0:00:45]} 42... gxh5 {[%clk 0:00:39.1]} 43. Nf4 {[%clk
0:00:46.6]} 43... Kb4 {[%clk 0:00:40.4]} 44. Nxh5 {[%clk 0:00:47]} 44... Kb3
{[%clk 0:00:28.6]} 45. Nf4 {[%clk 0:00:47.9]} 45... Kxb2 {[%clk 0:00:26.1]} 46.
Nd3+ {[%clk 0:00:48.7]} 46... Kb3 {[%clk 0:00:23.3]} 47. h5 {[%clk 0:00:48.7]}
47... Nd5 {[%clk 0:00:21.6]} 48. h6 {[%clk 0:00:48.2]} 48... Ne7 {[%clk
0:00:22.8]} 49. h7 {[%clk 0:00:47.4]} 49... Ng6 {[%clk 0:00:24.2]} 50. f4 {[%clk
0:00:20.7]} 50... a4 {[%clk 0:00:24.5]} 51. Nc5+ {[%clk 0:00:15.8]} 51... Kb4
{[%clk 0:00:25.7]} 52. Nxa4 {[%clk 0:00:17.2]} 52... Kxa4 {[%clk 0:00:27.6]} 53.
Kc4 {[%clk 0:00:14.6]} 53... Nh8 {[%clk 0:00:25.4]} 54. Kc5 {[%clk 0:00:14.2]}
54... Kb3 {[%clk 0:00:26.6]} 55. Kd6 {[%clk 0:00:15.7]} 55... Kc4 {[%clk
0:00:27.7]} 56. Ke7 {[%clk 0:00:17.2]} 56... Kd5 {[%clk 0:00:22.5]} 57. Kf6
{[%clk 0:00:17.7]} 57... Ke4 {[%clk 0:00:21.4]} 58. Kg7 {[%clk 0:00:18.9]} 58...
Ng6 {[%clk 0:00:22.5]} 59. Kxf7 {[%clk 0:00:19.8]} 59... Kf5 {[%clk 0:00:20.7]}
60. Kg7 {[%clk 0:00:19.3]} 1-0

[Event "*** MasterClass Titled Tuesday Blitz"]
[Site "Chess.com"]
[Date "2017.11.07"]
[Round "5"]
[White "michaelq2d5"]
[Black "FairChess_on_YouTube"]
[Result "1/2-1/2"]
[WhiteElo "2642"]
[BlackElo "2776"]
[TimeControl "180+2"]
[EndTime "15:16:22 PST"]
[Termination "Game drawn - insufficient material"]

1. d4 {[%clk 0:03:01.9]} 1... d5 {[%clk 0:03:00.4]} 2. c4 {[%clk 0:03:03]} 2...
c6 {[%clk 0:03:01.1]} 3. Nc3 {[%clk 0:03:04.1]} 3... Nf6 {[%clk 0:03:01.5]} 4.
e3 {[%clk 0:03:05.5]} 4... a6 {[%clk 0:03:01.6]} 5. Nf3 {[%clk 0:03:06.6]} 5...
Bf5 {[%clk 0:03:01.4]} 6. Qb3 {[%clk 0:03:05.7]} 6... b5 {[%clk 0:03:00.6]} 7.
cxd5 {[%clk 0:03:05.1]} 7... cxd5 {[%clk 0:03:01.5]} 8. a4 {[%clk 0:03:06.7]}
8... b4 {[%clk 0:03:02.5]} 9. Qxb4 {[%clk 0:03:08.2]} 9... Nc6 {[%clk 0:03:03]}
10. Qc5 {[%clk 0:02:21.9]} 10... Bd7 {[%clk 0:03:02.9]} 11. a5 {[%clk
0:01:56.8]} 11... e6 {[%clk 0:02:31.1]} 12. Qb6 {[%clk 0:01:54.8]} 12... Be7
{[%clk 0:02:26.4]} 13. Be2 {[%clk 0:01:48.4]} 13... Qc8 {[%clk 0:02:21.2]} 14.
Qb3 {[%clk 0:01:45.7]} 14... Rb8 {[%clk 0:02:13.1]} 15. Qd1 {[%clk 0:01:44.1]}
15... O-O {[%clk 0:02:13.4]} 16. O-O {[%clk 0:01:43.1]} 16... Bb4 {[%clk
0:02:10.5]} 17. Na4 {[%clk 0:01:28.5]} 17... Nxa5 {[%clk 0:02:08.8]} 18. Nc5
{[%clk 0:01:27.1]} 18... Bb5 {[%clk 0:02:05.4]} 19. Bxb5 {[%clk 0:01:19.4]}
19... Rxb5 {[%clk 0:02:04.8]} 20. Bd2 {[%clk 0:00:52]} 20... Bxc5 {[%clk
0:01:57.4]} 21. Rxa5 {[%clk 0:00:50.3]} 21... Rxa5 {[%clk 0:01:47.7]} 22. Bxa5
{[%clk 0:00:50.8]} 22... Bd6 {[%clk 0:01:48.8]} 23. Qd3 {[%clk 0:00:46.7]} 23...
Qb7 {[%clk 0:01:41.9]} 24. h3 {[%clk 0:00:29.8]} 24... Rc8 {[%clk 0:01:42]} 25.
Bc3 {[%clk 0:00:27.9]} 25... h6 {[%clk 0:01:41.3]} 26. Ra1 {[%clk 0:00:21.7]}
26... Rc6 {[%clk 0:01:40.6]} 27. Nd2 {[%clk 0:00:21.2]} 27... g5 {[%clk
0:01:39.9]} 28. e4 {[%clk 0:00:13.2]} 28... dxe4 {[%clk 0:01:37.3]} 29. Nxe4
{[%clk 0:00:14.6]} 29... Nd5 {[%clk 0:01:38.3]} 30. Qf3 {[%clk 0:00:12.2]} 30...
Be7 {[%clk 0:01:36]} 31. Qh5 {[%clk 0:00:11.7]} 31... Nf4 {[%clk 0:01:31.2]} 32.
Qf3 {[%clk 0:00:08.6]} 32... Rb6 {[%clk 0:01:29]} 33. Re1 {[%clk 0:00:04.7]}
33... f5 {[%clk 0:01:24.8]} 34. Nc5 {[%clk 0:00:02.8]} 34... Qxf3 {[%clk
0:01:23.8]} 35. gxf3 {[%clk 0:00:04.7]} 35... Nxh3+ {[%clk 0:01:22.7]} 36. Kf1
{[%clk 0:00:06.2]} 36... Nf4 {[%clk 0:01:07.6]} 37. Ra1 {[%clk 0:00:07.2]} 37...
Bxc5 {[%clk 0:01:02.8]} 38. dxc5 {[%clk 0:00:09.1]} 38... Rc6 {[%clk 0:01:03.9]}
39. b4 {[%clk 0:00:10.3]} 39... Nd5 {[%clk 0:01:02.4]} 40. Bd2 {[%clk
0:00:11.5]} 40... Kf7 {[%clk 0:01:02.2]} 41. Ke2 {[%clk 0:00:12.9]} 41... Kg6
{[%clk 0:00:46.5]} 42. Kd3 {[%clk 0:00:13.9]} 42... h5 {[%clk 0:00:47.9]} 43.
Rg1 {[%clk 0:00:12.7]} 43... f4 {[%clk 0:00:48.5]} 44. Ke4 {[%clk 0:00:12.5]}
44... h4 {[%clk 0:00:49.3]} 45. Ke5 {[%clk 0:00:07.7]} 45... Kh5 {[%clk
0:00:50.2]} 46. Ra1 {[%clk 0:00:04.7]} 46... h3 {[%clk 0:00:49.8]} 47. Rh1
{[%clk 0:00:04.8]} 47... Kh4 {[%clk 0:00:51.1]} 48. Rh2 {[%clk 0:00:03.4]} 48...
Ne7 {[%clk 0:00:50.8]} 49. Kf6 {[%clk 0:00:02.2]} 49... Nf5 {[%clk 0:00:51.7]}
50. Ke5 {[%clk 0:00:03.5]} 50... Rc8 {[%clk 0:00:46.3]} 51. Kxe6 {[%clk
0:00:04.7]} 51... Nd4+ {[%clk 0:00:46.9]} 52. Kd7 {[%clk 0:00:05.4]} 52... Rg8
{[%clk 0:00:42.6]} 53. Bc3 {[%clk 0:00:06.8]} 53... Nxf3 {[%clk 0:00:43.5]} 54.
Rh1 {[%clk 0:00:08.5]} 54... h2 {[%clk 0:00:41.6]} 55. c6 {[%clk 0:00:10]} 55...
g4 {[%clk 0:00:42]} 56. c7 {[%clk 0:00:10.9]} 56... g3 {[%clk 0:00:40.5]} 57.
fxg3+ {[%clk 0:00:11.7]} 57... fxg3 {[%clk 0:00:42.4]} 58. Bf6+ {[%clk 0:00:13]}
58... Kh3 {[%clk 0:00:43.8]} 59. Bd8 {[%clk 0:00:14.2]} 59... Rg7+ {[%clk
0:00:44.1]} 60. Be7 {[%clk 0:00:15.6]} 60... g2 {[%clk 0:00:44.4]} 61. Rxh2+
{[%clk 0:00:12]} 61... Kxh2 {[%clk 0:00:39.7]} 62. c8=Q {[%clk 0:00:13.5]} 62...
Rxe7+ {[%clk 0:00:15]} 63. Kxe7 {[%clk 0:00:14.7]} 63... g1=Q {[%clk 0:00:16.1]}
64. Qh8+ {[%clk 0:00:11.6]} 64... Kg3 {[%clk 0:00:14.6]} 65. Qg7+ {[%clk
0:00:10.6]} 65... Kf4 {[%clk 0:00:15.5]} 66. Qxg1 {[%clk 0:00:08.1]} 66... Nxg1
{[%clk 0:00:17.4]} 67. Kd6 {[%clk 0:00:09.7]} 67... Nf3 {[%clk 0:00:17.6]} 68.
Kc6 {[%clk 0:00:11.2]} 68... Ne5+ {[%clk 0:00:18.4]} 69. Kb6 {[%clk 0:00:12.6]}
69... Nd3 {[%clk 0:00:19.4]} 70. Kxa6 {[%clk 0:00:14.1]} 70... Nxb4+ {[%clk
0:00:20.3]} 1/2-1/2